fUST/lending_fUST_20260107
["ID","MTS","AMOUNT","RATE_DAILY","PERIOD"]
[400564801,1767721851945,-755.9426464,0.00035463,120]
[400564802,1767721851954,-170.0,0.00035467,120]
[400564803,1767721851962,-1326.666,0.000355,30]
[400564804,1767721851971,-1326.66,0.000355,30]
[400564805,1767721851980,-475.0,0.000355,120]
[400564806,1767721851989,-475.0,0.000355,120]
[400564807,1767721851999,-1624.223,0.000355,60]
[400564808,1767721852009,-1624.22,0.000355,60]
[400564809,1767721852018,-228.78,0.000355,7]
[400564810,1767721852027,-268.84,0.000355,7]
[400564811,1767721852037,-1326.67,0.000355,30]
[400564812,1767721852046,-1509.32,0.00035524,60]
[400564813,1767721852056,-723.98055111,0.00035579,2]
[400564814,1767721852066,-475.0,0.00035616,120]
[400564815,1767721852076,-475.0,0.00035616,120]
[400564816,1767721852086,-1825.86,0.00035616,120]
[400564817,1767721852097,-151.0,0.00035616,31]
[400564818,1767721852107,-151.0,0.00035616,31]
[400564819,1767721852116,-151.0,0.00035616,31]
[400564820,1767721852126,-151.0,0.00035616,31]
[400564821,1767721852135,-180.58134689,0.00035616,2]
[400564822,1767721852147,-151.0,0.00035616,31]
[400564823,1767721852157,-151.0,0.00035616,31]
[400564824,1767721852166,-1509.32,0.00035624,60]
[400564825,1767721852175,-151.0,0.00035624,31]
[400564826,1767721852184,-153.976582,0.00035624,31]
[400564827,1767721852193,-151.0,0.00035624,31]
[400564828,1767721852203,-284.613576,0.00035624,31]
[400564829,1767721852212,-151.0,0.00035624,31]
[400564830,1767721852221,-151.0,0.00035624,31]
[400564831,1767721852230,-175.241669,0.00035624,31]
[400564832,1767721852240,-175.241669,0.00035624,31]
[400564833,1767721852248,-175.241669,0.00035624,31]
[400564834,1767721852258,-175.241669,0.00035624,31]
[400564835,1767721852267,-11034.61992398,0.00035651,2]
[400564836,1767721852277,-1365.0,0.00035656,2]
[400564837,1767721852287,-2145.0,0.00035656,2]
[400564838,1767721852296,-628.0,0.00035656,2]
[400564839,1767721852306,-475.0,0.00035698,120]
[400564840,1767721852315,-475.0,0.00035698,120]
[400564841,1767721852325,-1509.32,0.00035724,60]
[400564842,1767721852336,-163.5336,0.00035788,2]
[400564843,1767721852353,-226.130628,0.00035793,2]
[400564844,1767721852367,-1894.77154139,0.00035793,2]
[400564845,1767721852377,-1543.26412909,0.00035793,2]
[400564846,1767721852388,-475.0,0.00035798,120]
[400564847,1767721852400,-475.0,0.00035798,120]
[400564848,1767721852411,-1509.32,0.00035824,60]
[400564849,1767721852420,-1364.653193,0.0003586,10]
[400564850,1767721852430,-1000.0,0.0003588,10]
[400564851,1767721852440,-1205.834353,0.0003588,10]
[400564852,1767721852450,-475.0,0.0003589,120]
[400564853,1767721852460,-475.0,0.0003589,120]
[400564854,1767721852470,-896.69,0.0003589,39]
[400564855,1767721852480,-161.0,0.0003589,30]
[400564856,1767721852490,-507.0,0.0003589,30]
[400564857,1767721852499,-1894.77154139,0.00035893,2]
[400564858,1767721852510,-1543.26412909,0.00035893,2]
[400564859,1767721852520,-1000.0,0.000359,10]
[400564860,1767721852530,-1000.0,0.000359,10]
[400564861,1767721852541,-1000.0,0.000359,19]
[400564862,1767721852552,-449.0,0.000359,2]
[400564863,1767721852563,-1500.0,0.000359,19]
[400564864,1767721852573,-1509.32,0.00035924,60]
[400564865,1767721852583,-183.3,0.00035938,30]
[400564866,1767721852594,-186.546,0.00035943,2]
[400564867,1767721852605,-1815.81971833,0.00035943,2]
[400564868,1767721852615,-151.418138,0.00035945,31]
[400564869,1767721852625,-151.0,0.00035945,31]
[400564870,1767721852635,-151.0,0.00035945,31]
[400564871,1767721852647,-151.0,0.00035945,31]
[400564872,1767721852656,-151.0,0.00035945,31]
[400564873,1767721852666,-273.060074,0.00035945,31]
[400564874,1767721852676,-25.9401085,0.00035968,60]
[400564875,1767721852687,-162.0,0.0003597,120]
[400564876,1767721852697,-1894.77154139,0.00035993,2]
[400564877,1767721852707,-1543.26412909,0.00035993,2]
[400564878,1767721852716,-1389.58479976,0.00036,2]
[400564879,1767721852726,-200.0,0.00036,120]
[400564880,1767721852736,-1000.0,0.00036,120]
[400564881,1767721852746,-500.0,0.00036,120]
[400564882,1767721852755,-1363.39786065,0.00036,120]
[400564883,1767721852765,-161.0,0.00036,30]
[400564884,1767721852774,-507.0,0.00036,30]
[400564885,1767721852784,-250.0,0.00036,14]
[400564886,1767721852794,-250.0,0.00036,14]
[400564887,1767721852803,-2000.0,0.00036,7]
[400564888,1767721852813,-1509.32,0.00036024,60]
[400564889,1767721852822,-151.42,0.00036068,60]
[400564890,1767721852833,-50857.57027903,0.00036074,15]
[400564891,1767721853262,-572.61979971,0.00012595,2]
[400564892,1767721853289,-2906.84784459,0.00012595,2]
[400564893,1767721853301,-2742.0000002,0.00012595,2]
[400564912,1767721912338,-198.56,0.0001,2]
[400564913,1767721912364,-162.62594836,0.000102,2]
[400564915,1767721914436,-35.93405164,0.000102,2]
[400564916,1767721914461,-198.56,0.000104,2]
[400564917,1767721914485,-10.77685775,0.00011189,20]
[400564943,1767722002284,-199.95697701,0.00011189,20]
[400564967,1767722077274,-184.26073351,0.00011594,2]
[400564970,1767722080237,-222.47987182,0.00011594,2]
[400564973,1767722081916,-300.0,0.00011594,2]
[400564974,1767722083322,-190.34731118,0.00011594,2]
[400565006,1767722137323,-357.8291785,0.00011594,2]
[400565030,1767722212407,-384.64275174,0.00011567,2]
[400565032,1767722215969,-183.5603008,0.00011567,2]
[400565034,1767722218044,-397.50550006,0.00011567,2]
[400565037,1767722223079,-235.25906959,0.00011567,2]
[400565038,1767722224600,-221.67868038,0.00011567,2]
[400565040,1767722227309,-462.77222048,0.00011567,2]
[400565045,1767722232058,-283.4228456,0.00011567,2]
[400565048,1767722234505,-311.46308135,0.00011567,2]
[400565049,1767722236010,-333.33333334,0.00011567,2]
[400565051,1767722239951,-194.6471544,0.00011567,2]
[400565052,1767722244033,-300.0,0.00011567,2]
[400565129,1767722407358,-185.97107347,0.00011567,2]
[400565132,1767722412049,-330.24005058,0.00011567,2]
[400565147,1767722437838,158.1,7.495e-05,2]
[400565228,1767723007289,-244.17662665,0.00011522,2]
[400565229,1767723009947,-205.74623607,0.00011522,2]
[400565230,1767723013251,-132.07713728,0.00011522,2]
[400565231,1767723013283,-31.50610962,0.00011522,2]
[400565261,1767723032116,-699.78343266,0.00011407,2]
[400565262,1767723032126,-468.49389038,0.00011522,2]
[400565263,1767723032135,-62.19532276,0.00011567,2]
[400565264,1767723032145,-11.57999209,0.00011594,2]
[400565265,1767723032159,-222.982,0.00012343,2]
[400565266,1767723032168,-186.98575797,0.00012493,2]
[400565267,1767723032179,-300.0,0.00012591,2]
[400565268,1767723032189,-300.0,0.00012591,2]
[400565269,1767723032199,-300.0,0.00012591,2]
[400565270,1767723032209,-300.0,0.00012591,2]
[400565271,1767723032218,-1200.0,0.00012591,2]
[400565272,1767723032230,-14335.98612177,0.00012592,2]
[400565273,1767723032242,-7812.66541231,0.00012592,2]
[400565274,1767723032252,-500.0,0.00012592,2]
[400565275,1767723032262,-500.0,0.00012592,2]
[400565276,1767723032271,-500.0,0.00012592,2]
[400565277,1767723032281,-500.0,0.00012592,2]
[400565278,1767723032290,-500.0,0.00012592,2]
[400565279,1767723032300,-500.0,0.00012592,2]
[400565280,1767723032309,-500.0,0.00012592,2]
[400565281,1767723032318,-500.0,0.00012592,2]
[400565282,1767723032328,-500.0,0.00012592,2]
[400565283,1767723032337,-500.0,0.00012592,2]
[400565284,1767723032346,-500.0,0.00012592,2]
[400565285,1767723032357,-500.0,0.00012592,2]
[400565286,1767723032366,-324.97135618,0.00012592,2]
[400565287,1767723032377,-500.0,0.00012592,2]
[400565288,1767723032387,-500.0,0.00012592,2]
[400565289,1767723032397,-595.96308531,0.00012592,2]
[400565290,1767723032406,-500.0,0.00012592,2]
[400565291,1767723032416,-500.0,0.00012592,2]
[400565292,1767723032426,-200.0,0.00012592,2]
[400565293,1767723032435,-500.0,0.00012592,2]
[400565294,1767723032445,-500.0,0.00012592,2]
[400565295,1767723032454,-500.0,0.00012592,2]
[400565296,1767723032464,-500.0,0.00012592,2]
[400565297,1767723032475,-500.0,0.00012592,2]
[400565298,1767723032485,-500.0,0.00012592,2]
[400565299,1767723032494,-500.0,0.00012592,2]
[400565300,1767723032504,-500.0,0.00012592,2]
[400565301,1767723032513,-500.0,0.00012592,2]
[400565302,1767723032523,-360.0,0.00012592,2]
[400565303,1767723032532,-499.99999999,0.00012592,2]
[400565304,1767723032542,-463.39578596,0.00012593,2]
[400565305,1767723032552,-300.0,0.00012846,2]
[400565306,1767723032562,-300.0,0.00012846,2]
[400565307,1767723032572,-300.0,0.00012846,2]
[400565308,1767723032582,-300.0,0.00012846,2]
[400565309,1767723032592,-300.0,0.00012846,2]
[400565310,1767723032603,-300.0,0.00012846,2]
[400565311,1767723032613,-300.0,0.00012846,2]
[400565312,1767723032623,-300.0,0.00012846,2]
[400565313,1767723032634,-300.0,0.00012846,2]
[400565314,1767723032643,-300.0,0.00012846,2]
[400565315,1767723032654,-300.0,0.00012846,2]
[400565316,1767723032664,-300.0,0.00012846,2]
[400565317,1767723032674,-300.0,0.00012846,2]
[400565318,1767723032685,-300.0,0.00012846,2]
[400565319,1767723032694,-300.0,0.00012846,2]
[400565320,1767723032704,-600.0,0.00012846,2]
[400565321,1767723032714,-1264.45118139,0.000129,2]
[400565322,1767723032724,-199.95697701,0.00013273,2]
[400565323,1767723032734,-561.84091572,0.00013273,2]
[400565324,1767723032743,-411.7139534,0.00013273,2]
[400565325,1767723032752,-444.14077108,0.00013273,2]
[400565326,1767723032762,-396.79922892,0.00013273,2]
[400565327,1767723032772,-500.0,0.00013273,2]
[400565328,1767723032782,-500.0,0.00013273,2]
[400565329,1767723032792,-497.04994014,0.00013273,2]
[400565330,1767723032801,-397.50550006,0.00013273,2]
[400565331,1767723032811,-177.0,0.00013567,2]
[400565332,1767723032821,-300.0,0.00013673,2]
[400565333,1767723032831,-17906.3209483,0.00013699,2]
[400565334,1767723032840,-500.0,0.00013699,2]
[400565335,1767723032849,-500.0,0.00013699,2]
[400565336,1767723032858,-500.0,0.00013699,2]
[400565337,1767723032868,-500.0,0.00013699,2]
[400565338,1767723032877,-500.0,0.00013699,2]
[400565339,1767723032887,-500.0,0.00013699,2]
[400565340,1767723032896,-500.0,0.00013699,2]
[400565341,1767723032905,-420.0,0.00013814,2]
[400565342,1767723032915,-500.0,0.00013821,2]
[400565343,1767723032924,-500.0,0.00013821,2]
[400565344,1767723032934,-1200.0,0.0001385,2]
[400565345,1767723032944,-720.0,0.00014131,2]
[400565346,1767723032954,-159.96694362,0.00014175,2]
[400565347,1767723032965,-178.1907737,0.00014175,2]
[400565348,1767723033118,-311.16319175,0.00014247,2]
[400565349,1767723033129,-1000.0,0.00014247,2]
[400565350,1767723033138,-620.64958913,0.00014247,2]
[400565351,1767723033147,-201.78975827,0.00014549,2]
[400565352,1767723033160,-587.0,0.00015156,2]
[400565353,1767723033171,-864.0,0.00015544,2]
[400565354,1767723033181,-1041.66666667,0.00015566,2]
[400565355,1767723033190,-204.0,0.00015567,2]
[400565356,1767723033202,-229.73554902,0.00016027,4]
[400565357,1767723033212,-1264.45118136,0.00016031,2]
[400565358,1767723033221,-481.0,0.00016627,2]
[400565359,1767723033232,-1000.0,0.00017098,2]
[400565360,1767723033241,-261.43381739,0.00017504,7]
[400565361,1767723033251,-231.0,0.00017567,2]
[400565362,1767723033260,-1000.0,0.00018808,2]
[400565363,1767723033272,-244.0,0.00018808,2]
[400565364,1767723033282,-303.39437628,0.000189,2]
[400565365,1767723033292,-303.37311465,0.000189,2]
[400565366,1767723033301,-174.0,0.00018959,3]
[400565367,1767723033310,-296.48355709,0.00018982,9]
[400565368,1767723033320,-303.39437628,0.00019089,2]
[400565369,1767723033329,-303.37311465,0.00019089,2]
[400565370,1767723033338,-160.93,0.000192,2]
[400565371,1767723033347,-159.79,0.000192,2]
[400565372,1767723033356,-303.39437628,0.00019278,2]
[400565373,1767723033366,-303.37311465,0.00019278,2]
[400565374,1767723033375,-303.39437628,0.00019467,2]
[400565375,1767723033385,-303.37311465,0.00019467,2]
[400565376,1767723033394,-258.0,0.00019567,2]
[400565377,1767723033403,-1264.45118136,0.00019568,2]
[400565378,1767723033413,-303.39437628,0.00019656,2]
[400565379,1767723033423,-303.37311465,0.00019656,2]
[400565380,1767723033432,-455.09156442,0.00019845,4]
[400565381,1767723033442,-455.05967197,0.00019845,4]
[400565382,1767723033451,-151.69566936,0.0002,2]
[400565383,1767723033461,-455.09156442,0.00020034,4]
[400565384,1767723033471,-212.82074213,0.00020034,4]
[400565385,1767723033480,-455.09156442,0.00020223,4]
[400565386,1767723033490,-455.09156442,0.00020412,4]
[400565387,1767723033499,-334.59037919,0.0002046,12]
[400565388,1767723033509,-454.82579401,0.00020601,4]
[400565389,1767723033518,-1000.0,0.00020689,2]
[400565390,1767723033527,-492.0,0.00020689,2]
[400565391,1767723033537,-3000.0,0.00021,2]
[400565392,1767723033546,-3000.0,0.0002101,2]
[400565393,1767723033556,-3000.0,0.0002102,2]
[400565394,1767723033566,-3000.0,0.0002103,2]
[400565395,1767723033575,-818.88753838,0.0002104,2]
[400565396,1767723033590,-459.76,0.0002104,2]
[400565405,1767723038042,-453.39377217,0.0002104,2]
[400565410,1767723038203,-176.91,0.00019178,2]
[400565411,1767723038216,-467.12257812,0.0002104,2]
[400565469,1767723044242,-300.0,0.0002104,2]
[400565472,1767723044555,-3e-08,0.0002104,2]
[400565473,1767723044568,-500.8361113,0.0002104,2]
[400565474,1767723044577,-414.72695442,0.0002105,2]
[400565551,1767723046117,-2585.27304558,0.0002105,2]
[400565553,1767723046127,-3000.0,0.0002106,2]
[400565555,1767723046136,-3000.0,0.0002107,2]
[400565556,1767723046145,-8070.39,0.0002107,10]
[400565558,1767723046155,-3000.0,0.0002108,2]
[400565559,1767723046169,-5987.701871,0.0002109,2]
[400565560,1767723046179,-285.0,0.00021567,2]
[400565561,1767723046189,-375.52618966,0.00021937,15]
[400565562,1767723046199,-570.68,0.000221,2]
[400565563,1767723046210,-1352.35,0.000221,7]
[400565565,1767723046219,-450.0,0.00022466,2]
[400565566,1767723046228,-1000.0,0.00022757,10]
[400565567,1767723046240,-791.0,0.00022757,10]
[400565568,1767723046249,-1264.45118136,0.00023106,2]
[400565569,1767723046259,-285.75793298,0.00023123,2]
[400565570,1767723046268,-419.10747794,0.00023415,18]
[400565571,1767723046277,-475.0,0.00023552,7]
[400565572,1767723046286,-475.0,0.00023552,7]
[400565573,1767723046295,-475.0,0.00023552,7]
[400565574,1767723046304,-475.0,0.00023552,7]
[400565575,1767723046314,-475.0,0.00023552,7]
[400565576,1767723046323,-475.0,0.00023552,7]
[400565577,1767723046333,-475.0,0.00023552,7]
[400565578,1767723046341,-475.0,0.00023552,7]
[400565579,1767723046351,-475.0,0.00023552,7]
[400565580,1767723046360,-475.0,0.00023552,7]
[400565581,1767723046369,-475.0,0.00023552,7]
[400565582,1767723046379,-475.0,0.00023552,7]
[400565583,1767723046388,-312.0,0.00023567,2]
[400565584,1767723046398,-1365.0,0.00023638,2]
[400565586,1767723046408,-2145.0,0.00023638,2]
[400565587,1767723046417,-6725.33,0.0002398,10]
[400565589,1767723046427,-61328.6865551,0.0002399,2]
[400565590,1767723046438,-1170.59,0.00024,14]
[400565592,1767723046447,-500.0,0.00024336,2]
[400565594,1767723046456,-500.0,0.00024387,2]
[400565595,1767723046466,-159.0,0.00024438,13]
[400565596,1767723046475,-500.0,0.00024485,2]
[400565597,1767723046485,-200.0,0.00024658,2]
[400565598,1767723046496,-380.0,0.00024658,2]
[400565599,1767723046506,-1352.35,0.000248,7]
[400565600,1767723046516,-500.0,0.00024817,2]
[400565601,1767723046525,-465.18243174,0.00024892,20]
[400565602,1767723046535,-21873.42974496,0.000249,2]
[400565603,1767723046550,-1340.22142741,0.000249,2]
[400565604,1767723046562,-5349.15814679,0.000249,2]
[400565605,1767723046574,-3800.84185321,0.000249,2]
[400565606,1767723046602,-453.0,0.000249,2]
[400565607,1767723046615,-400.0,0.000249,2]
[400565617,1767723310751,181.0,0.00023773,120]
[400565618,1767723312301,181.0,0.00024961,120]
[400565619,1767723313634,181.0,0.00026209,120]
[400565620,1767723315099,181.0,0.0002752,120]
[400565621,1767723316582,181.0,0.00028896,120]
[400565760,1767724015371,155.0,6e-05,2]
[400565854,1767724232111,-160.34,0.0001255,2]
[400565855,1767724232121,-352.01140376,0.00013,7]
[400565885,1767724238125,-5673.87291122,0.00013,7]
[400565887,1767724238136,-300.0,0.00013271,2]
[400565889,1767724238146,-300.0,0.00013272,2]
[400565891,1767724238155,-300.0,0.00013272,2]
[400565893,1767724238165,-500.0,0.00013273,2]
[400565895,1767724238175,-500.0,0.00013273,2]
[400565897,1767724238184,-500.0,0.00013273,2]
[400565899,1767724238194,-500.0,0.00013273,2]
[400565901,1767724238203,-500.0,0.00013273,2]
[400565903,1767724238212,-235.25906959,0.00013273,2]
[400565905,1767724238222,-500.0,0.00013273,2]
[400565907,1767724238231,-500.0,0.00013273,2]
[400565909,1767724238241,-500.0,0.00013273,2]
[400565911,1767724238250,-500.0,0.00013273,2]
[400565913,1767724238260,-405.42788714,0.00013273,2]
[400565915,1767724238270,-240.74399382,0.00013273,2]
[400565917,1767724238279,-500.0,0.00013273,2]
[400565919,1767724238289,-500.0,0.00013273,2]
[400565921,1767724238298,-500.0,0.00013273,2]
[400565923,1767724238308,-500.0,0.00013273,2]
[400565925,1767724238317,-500.0,0.00013273,2]
[400565927,1767724238326,-500.0,0.00013273,2]
[400565929,1767724238335,-500.0,0.00013699,2]
[400565931,1767724238345,-602.91356518,0.00013699,2]
[400565933,1767724238354,-564.14853486,0.00013821,2]
[400565935,1767724238363,-163.73378036,0.00014175,2]
[400565937,1767724238373,-1000.0,0.00014247,2]
[400565939,1767724238382,-188.84499691,0.00014691,2]
[400565941,1767724238391,-177.0,0.00014775,2]
[400565943,1767724238401,-1171.78607556,0.00014795,2]
[400565945,1767724238411,-1000.0,0.00015,2]
[400565947,1767724238420,-2412.43259168,0.00015,2]
[400565949,1767724238429,-10987.96789992,0.0001501,2]
[400565951,1767724238438,-832.71604145,0.0001505,2]
[400565953,1767724238448,-273.72368144,0.0001515,20]
[400565955,1767724238457,-1041.66666667,0.0001558,2]
[400565957,1767724238467,-221.36281612,0.00016111,4]
[400565959,1767724238479,-204.0,0.00016775,2]
[400565961,1767724238488,-151.0,0.0001699,2]
[400565963,1767724238497,-151.0,0.0001699,2]
[400565965,1767724238506,-151.0,0.0001699,2]
[400565967,1767724238517,-260.81071806,0.0001699,2]
[400565969,1767724238526,-324.37705017,0.00016999,2]
[400565971,1767724238536,-971.89345171,0.00016999,2]
[400565973,1767724238547,-500.0,0.00016999,2]
[400565975,1767724238557,-971.89345171,0.00016999,2]
[400565977,1767724238566,-500.0,0.00016999,2]
[400565979,1767724238576,-971.89345171,0.00016999,2]
[400565981,1767724238585,-971.89345171,0.00016999,2]
[400565983,1767724238594,-500.0,0.00016999,2]
[400565985,1767724238603,-971.89345171,0.00016999,2]
[400565987,1767724238613,-500.0,0.00016999,2]
[400565989,1767724238622,-971.89345171,0.00016999,2]
[400565991,1767724238631,-971.89345171,0.00016999,2]
[400565993,1767724238641,-372.9001029,0.00016999,2]
[400565995,1767724238650,-500.0,0.00016999,2]
[400565997,1767724238659,-971.89345171,0.00016999,2]
[400565999,1767724238668,-971.89345171,0.00016999,2]
[400566001,1767724238677,-971.89345171,0.00016999,2]
[400566003,1767724238687,-971.89345171,0.00016999,2]
[400566005,1767724238696,-971.89345171,0.00016999,2]
[400566007,1767724238706,-500.0,0.00016999,2]
[400566009,1767724238715,-500.0,0.00016999,2]
[400566011,1767724238725,-500.0,0.00016999,2]
[400566013,1767724238735,-500.0,0.00016999,2]
[400566015,1767724238744,-500.0,0.00016999,2]
[400566017,1767724238753,-500.0,0.00016999,2]
[400566020,1767724238763,-300.0,0.00016999,2]
[400566022,1767724238773,-376.89926994,0.00016999,2]
[400566024,1767724238782,-621.77367615,0.00016999,2]
[400566026,1767724238791,-500.0,0.00016999,2]
[400566028,1767724238800,-971.89345171,0.00016999,2]
[400566030,1767724238810,-329.69269677,0.00016999,2]
[400566032,1767724238819,-971.89345171,0.00016999,2]
[400566034,1767724238828,-971.89345171,0.00016999,2]
[400566035,1767724238837,-971.89345171,0.00016999,2]
[400566037,1767724238847,-1056.93412874,0.00016999,2]
[400566039,1767724238856,-1056.93412874,0.00016999,2]
[400566041,1767724238866,-1056.93412874,0.00016999,2]
[400566043,1767724238875,-1056.93412874,0.00016999,2]
[400566045,1767724238884,-1056.93412874,0.00016999,2]
[400566047,1767724238894,-1056.93412874,0.00016999,2]
[400566049,1767724238904,-1056.93412874,0.00016999,2]
[400566051,1767724238913,-1056.93412874,0.00016999,2]
[400566053,1767724238923,-61162.51963186,0.00017,2]
[400566054,1767724238932,-163349.36340269,0.00017,7]
[400566055,1767724238941,-1120.1829079,0.00017265,2]
[400566056,1767724238950,-427.5157193,0.00017502,2]
[400566057,1767724238958,-259.87024293,0.0001753,7]
[400566058,1767724238967,-68830.82713632,0.00018,5]
[400566059,1767724238977,-2999.999999,0.00018,2]
[400566060,1767724238997,-832.71604143,0.0001822,2]
[400566061,1767724239018,-231.0,0.00018775,2]
[400566062,1767724239029,-42279.56725066,0.000189,2]
[400566063,1767724239038,-303.54833243,0.0001895,9]
[400566064,1767724239047,-161.0,0.00018959,3]
[400566065,1767724239056,-168.077679,0.0001897,2]
[400566066,1767724239066,-497.28977626,0.00019205,5]
[400566067,1767724239075,-159.79,0.000193,2]
[400566068,1767724239084,-160.94,0.000193,2]
[400566069,1767724239093,-1053.53,0.000193,2]
[400566070,1767724239103,-1815.44742593,0.0002,2]
[400566071,1767724239112,-300.00038009,0.0002,7]
[400566072,1767724239121,-351.84452482,0.0002037,12]
[400566073,1767724239130,-258.0,0.00020775,2]
[400566074,1767724239139,-277.05120127,0.00021,2]
[400566076,1767724239149,-1081.20658707,0.00021,10]
[400566078,1767724239158,-27032.71808146,0.00021,2]
[400566080,1767724239167,-832.71604143,0.00021391,2]
[400566082,1767724239177,-568.06899724,0.0002196,10]
[400566084,1767724239186,-84987.34441726,0.00022,2]
[400566086,1767724239197,-171.83181526,0.00022,10]
[400566088,1767724239206,-19696.50350082,0.00022,7]
[400566090,1767724239216,-513.61,0.00022,2]
[400566092,1767724239225,-4893.36,0.00022,2]
[400566095,1767724239241,-1116.77,0.00022,7]
[400566098,1767724239255,-168.077679,0.00022394,2]
[400566100,1767724239264,-2257.75887741,0.00022541,2]
[400566102,1767724239274,-285.0,0.00022775,2]
[400566103,1767724239284,-2257.75887741,0.00023008,2]
[400566105,1767724239294,-2257.75887741,0.00023136,2]
[400566106,1767724239304,-293.94308261,0.00023179,2]
[400566107,1767724239314,-2257.75887741,0.0002336,2]
[400566108,1767724239325,-600.0,0.00023466,2]
[400566109,1767724239335,-982.9436304,0.00023613,2]
[400566111,1767724239344,-1053.53,0.000237,14]
[400566112,1767724239354,-2257.75887741,0.0002372,2]
[400566113,1767724239363,-2257.75887741,0.00023932,2]
[400566114,1767724239373,-43901.28444321,0.00024,2]
[400566115,1767724239383,-1734.56052203,0.00024,2]
[400566116,1767724239393,-465.40086912,0.00024,2]
[400566117,1767724239402,-618.86,0.00024,14]
[400566118,1767724239412,-159.79,0.00024,7]
[400566119,1767724239421,-160.94,0.00024,7]
[400566120,1767724239431,-511358.26965662,0.00024142,2]
[400566121,1767724239440,-293.94308261,0.00024155,56]
[400566122,1767724239449,-2257.75887741,0.00024269,2]
[400566123,1767724239458,-2257.75887747,0.0002442,2]
[400566124,1767724239469,-832.71604143,0.00024561,2]
[400566125,1767724239482,-4893.36,0.000246,2]
[400566126,1767724239491,-1116.77,0.000246,7]
[400566127,1767724239502,-520.81206988,0.00024629,20]
[400566128,1767724239511,-156710.90453851,0.0002465,2]
[400566129,1767724239522,-513.75227377,0.0002465,2]
[400566130,1767724239532,-16820.33315327,0.00024774,2]
[400566131,1767724239541,-312.0,0.00024775,2]
[400566132,1767724239553,-1041.66666667,0.0002479,10]
[400566133,1767724239563,-300.0,0.000248,2]
[400566134,1767724239572,-1000000.0,0.000248,2]
[400566135,1767724239583,-20777.821547,0.000248,2]
[400566136,1767724239592,-513.61,0.000248,2]
[400566137,1767724239601,-166.0,0.000249,3]
[400566138,1767724239610,-357.37586378,0.000249,3]
[400566139,1767724239620,-166.0,0.000249,3]
[400566140,1767724239629,-166.0,0.000249,3]
[400566141,1767724239638,-152.0,0.000249,3]
[400566142,1767724239647,-152.0,0.000249,3]
[400566143,1767724239657,-163.0,0.000249,3]
[400566144,1767724239666,-153.76138875,0.000249,3]
[400566145,1767724239675,-163.0,0.000249,3]
[400566146,1767724239685,-185.22374852,0.000249,3]
[400566147,1767724239693,-152.0,0.000249,3]
[400566148,1767724239703,-152.0,0.000249,3]
[400566149,1767724239712,-633613.735212,0.000249,2]
[400566150,1767724239722,-1365.0,0.00024971,2]
[400566151,1767724239732,-628.0,0.00024971,2]
[400566152,1767724239741,-2145.0,0.00024971,2]
[400566153,1767724239751,-723.853,0.00024971,2]
[400566154,1767724239760,-194.752,0.00024971,2]
[400566155,1767724239769,-417.0,0.00024971,2]
[400566156,1767724239779,-111528.65958939,0.00025,15]
[400566157,1767724239788,-1084.88588646,0.00025,2]
[400566158,1767724239797,-11299.51643052,0.00025,2]
[400566159,1767724239807,-2673.15322453,0.00025,2]
[400566160,1767724239816,-16634.07512341,0.00025,2]
[400566162,1767724240269,-5679.5018129,0.00025,2]
[400566179,1767724244742,-447.86,0.00025,2]
[400566182,1767724246187,-4450.44059021,0.00025,2]